fUSD/lending_fUSD_20241227
["ID","MTS","AMOUNT","RATE_DAILY","PERIOD"]
[346851056,1735325448958,-8064.88,0.00010479,2]
[346851057,1735325448968,-10714.78,0.00010479,2]
[346851058,1735325448978,-500.0,0.00010479,2]
[346851059,1735325448987,-6652.52,0.00010479,2]
[346851060,1735325448997,-2212.9,0.00010479,2]
[346851061,1735325449006,-1875.12,0.00010479,2]
[346851062,1735325449016,-500.0,0.00010479,2]
[346851063,1735325449025,-500.0,0.00010479,2]
[346851065,1735325449035,-500.0,0.00010479,2]
[346851066,1735325449044,-500.0,0.00010479,2]
[346851067,1735325449054,-500.0,0.00010479,2]
[346851068,1735325449064,-500.0,0.00010479,2]
[346851069,1735325449074,-500.0,0.00010479,2]
[346851070,1735325449083,-500.0,0.00010479,2]
[346851071,1735325449093,-326.12,0.00010479,2]
[346851072,1735325449102,-4390.99,0.00010479,2]
[346851073,1735325449112,-420470.34306577,0.0001048,2]
[346851074,1735325449541,-16881.20067584,0.0001048,2]
[346851075,1735325449554,-2302.42204229,0.0001048,2]
[346851076,1735325449581,-7899.30466691,0.0001048,2]
[346851077,1735325449620,-5272.452286,0.0001048,2]
[346851078,1735325449631,-422.25836631,0.0001048,2]
[346851079,1735325449643,-1728.77262585,0.0001048,2]
[346851080,1735325449654,-1925.36,0.0001048,2]
[346851082,1735325449695,-500.0,0.00010476,2]
[346851083,1735325449705,-23853.98229285,0.0001048,2]
[346851084,1735325449716,-2845.77,0.0001048,2]
[346851085,1735325449744,-9081.0,0.0001048,2]
[346851086,1735325449755,-36147.6469424,0.0001048,2]
[346851089,1735325450378,-8114.01232169,0.000104,2]
[346851090,1735325450417,-6918.34461718,0.000104,2]
[346851091,1735325450426,-500.0,0.00010476,2]
[346851092,1735325450436,-500.0,0.00010476,2]
[346851093,1735325450445,-500.0,0.00010476,2]
[346851094,1735325450454,-500.0,0.00010477,2]
[346851095,1735325450463,-500.0,0.00010478,2]
[346851096,1735325450472,-418101.48111242,0.0001048,2]
[346851097,1735325450483,-520.25399644,0.0001048,2]
[346851098,1735325450494,-973.5000007,0.0001048,2]
[346851099,1735325450506,-1374.4,0.0001048,2]
[346851100,1735325450516,-627252.06804051,0.0001048,2]
[346851101,1735325450527,-425.73802,0.0001048,2]
[346851102,1735325450553,-500.0,0.00010476,2]
[346851103,1735325450562,-18497.5,0.0001048,2]
[346851104,1735325450573,-304.52999997,0.0001048,2]
[346851105,1735325450592,-741.65,0.0001048,2]
[346851106,1735325450603,-32721.15975101,0.0001048,2]
[346851109,1735325451314,-252.09,0.00010378,2]
[346851110,1735325451326,-332.0,0.00010475,2]
[346851111,1735325451336,-500.0,0.00010476,2]
[346851112,1735325451346,-500.0,0.00010476,2]
[346851113,1735325451355,-500.0,0.00010478,2]
[346851114,1735325451365,-1716.87,0.00010479,2]
[346851115,1735325451374,-174349.039999,0.0001048,2]
[346851116,1735325451386,-404.880005,0.0001048,2]
[346851117,1735325451397,-1000.93842479,0.0001048,2]
[346851118,1735325451408,-5958.56352487,0.0001048,2]
[346851119,1735325451419,-3949.3,0.0001048,2]
[346851120,1735325451441,-5602.1528065,0.0001048,2]
[346851121,1735325451467,-288216.32481269,0.0001048,2]
[346851122,1735325451479,-355.64622195,0.0001048,2]
[346851123,1735325451489,-405.46587659,0.0001048,2]
[346851124,1735325451501,-780.60377805,0.0001048,2]
[346851125,1735325451511,-3282.40982692,0.0001048,2]
[346851126,1735325451523,-1947.7999999,0.0001048,2]
[346851130,1735325474178,250.0,9.357e-05,2]
[346851133,1735325506083,2412.88,9.589e-05,2]
[346851139,1735325736369,1500.0,9.69e-05,2]
[346851140,1735325856258,1500.0,8.965e-05,2]
[346851141,1735325856811,1500.0,9.526e-05,2]
[346851142,1735325856919,1500.0,8.729e-05,2]
[346851143,1735325887195,576.49,8.219e-05,2]
[346851144,1735325933511,683.85,9.499e-05,2]
[346851145,1735325976306,1500.0,8.296e-05,2]
[346851170,1735326490575,250.0,9.468e-05,2]
[346851308,1735326562907,-953.96554725,9.87e-05,2]
[346851310,1735326562934,-490.062,0.0001002,2]
[346851311,1735326562962,-174.08,0.00010137,2]
[346851313,1735326562984,-196.01,0.00010158,2]
[346851315,1735326563005,-151.58,0.00010158,2]
[346851317,1735326563032,-251.86,0.00010279,2]
[346851319,1735326563056,-246.13,0.00010279,2]
[346851321,1735326563078,-253.99,0.0001028,2]
[346851323,1735326563101,-252.98,0.0001028,2]
[346851325,1735326563125,-251.08,0.0001028,2]
[346851327,1735326563147,-249.27,0.0001028,2]
[346851329,1735326563170,-199.7986,0.0001028,2]
[346851331,1735326563196,-246.58,0.0001028,2]
[346851333,1735326563223,-246.02,0.0001028,2]
[346851335,1735326563243,-418.0314,0.0001028,2]
[346851337,1735326563266,-249.33,0.0001028,2]
[346851351,1735326563545,-729.027,0.0001028,2]
[346851353,1735326563569,-815.41179025,0.0001028,2]
[346851355,1735326563595,-1387.0,0.000103,2]
[346851357,1735326563616,-285.3803246,0.0001034,2]
[346851359,1735326563637,-299.99,0.0001034,2]
[346851361,1735326563657,-19532.4233379,0.0001034,2]
[346851442,1735326583929,1000.0,9.597e-05,2]
[346851462,1735326632215,-2507.99979,0.0001,2]
[346851463,1735326632225,-254.47,0.0001,2]
[346851464,1735326632235,-249.09,0.0001,2]
[346851465,1735326632245,-248.99,0.0001,2]
[346851466,1735326632254,-300.0,0.00010339,2]
[346851467,1735326632265,-13121.48256424,0.0001034,2]
[346851468,1735326632276,-852.116,0.0001034,2]
[346851469,1735326632288,-1825.24541098,0.0001034,2]
[346851470,1735326632315,-583.32405185,0.0001034,2]
[346851471,1735326632326,-2259.62505428,0.0001034,2]
[346851472,1735326632412,-294.0,0.0001034,2]
[346851473,1735326632424,-1095.24598585,0.0001034,2]
[346851474,1735326632435,-451.752963,0.0001034,2]
[346851475,1735326632461,-23673.0546319,0.0001034,2]
[346851476,1735326632472,-1805.7,0.0001034,2]
[346851477,1735326632482,-150.99,0.0001034,2]
[346851478,1735326632491,-1445.73,0.0001034,2]
[346851479,1735326632500,-1075.75,0.0001034,2]
[346851480,1735326632510,-262.83,0.0001034,2]
[346851482,1735326632521,-150.99,0.0001034,2]
[346851484,1735326632530,-2216.22,0.0001034,2]
[346851486,1735326632540,-999.99,0.0001034,2]
[346851488,1735326632549,-9999.99,0.0001034,2]
[346851490,1735326632558,-2456.12,0.00010375,2]
[346851492,1735326632568,-5000.0,0.00010375,2]
[346851494,1735326632577,-54031.8875,0.00010375,2]
[346851496,1735326632586,-2500.0,0.00010375,2]
[346851498,1735326632595,-988.4172,0.00010376,2]
[346851500,1735326632605,-4533.467,0.00010376,2]
[346851502,1735326632616,-158.446,0.00010376,2]
[346851503,1735326632625,-173.59306876,0.0001038,2]
[346851505,1735326632634,-176.92316017,0.0001038,2]
[346851508,1735326632644,-6611.36841381,0.0001038,2]
[346851509,1735326632654,-3000.0,0.0001038,2]
[346851511,1735326632664,-15907.86771568,0.0001038,2]
[346851525,1735326632926,-150.68,0.000104,2]
[346851526,1735326632936,-1000.0,0.000104,2]
[346851527,1735326632945,-576.49,0.0001045,2]
[346851528,1735326632954,-500.0,0.00010473,2]
[346851529,1735326632964,-500.0,0.00010473,2]
[346851530,1735326632973,-500.0,0.00010473,2]
[346851531,1735326632982,-500.0,0.00010473,2]
[346851532,1735326632992,-500.0,0.00010473,2]
[346851533,1735326633001,-506.5,0.00010473,2]
[346851534,1735326633011,-2358.91,0.00010473,2]
[346851535,1735326633022,-615.7,0.00010473,2]
[346851536,1735326633032,-7797.98,0.00010473,2]
[346851537,1735326633042,-2035.04,0.00010473,2]
[346851538,1735326633052,-1597.51,0.00010473,2]
[346851539,1735326633062,-1224.72,0.00010473,2]
[346851540,1735326633072,-1699.94,0.00010473,2]
[346851541,1735326633081,-2928.58,0.00010473,2]
[346851542,1735326633091,-1034.38,0.00010473,2]
[346851543,1735326633101,-500.0,0.00010473,2]
[346851544,1735326633110,-905.28,0.00010474,2]
[346851545,1735326633120,-1592.66,0.00010474,2]
[346851546,1735326633130,-1047.08,0.00010474,2]
[346851547,1735326633139,-155.940262,0.00010474,2]
[346851548,1735326633149,-154.072404,0.00010474,2]
[346851549,1735326633159,-1070.862548,0.00010474,2]
[346851550,1735326633169,-500.0,0.00010474,2]
[346851551,1735326633178,-579.43,0.00010474,2]
[346851552,1735326633187,-920.671261,0.00010474,2]
[346851553,1735326633198,-9241.53,0.00010474,2]
[346851554,1735326633207,-500.0,0.00010474,2]
[346851555,1735326633217,-2201.79,0.00010474,2]
[346851556,1735326633226,-728.57,0.00010474,2]
[346851557,1735326633235,-1305.28,0.00010474,2]
[346851558,1735326633245,-2876.33,0.00010474,2]
[346851559,1735326633254,-2636.32,0.00010474,2]
[346851560,1735326633264,-1357.62,0.00010474,2]
[346851561,1735326633273,-1505.95,0.00010474,2]
[346851562,1735326633283,-2134.88,0.00010474,2]
[346851563,1735326633292,-1465.93,0.00010474,2]
[346851564,1735326633301,-6616.61,0.00010474,2]
[346851565,1735326633310,-531.0,0.00010474,2]
[346851566,1735326633320,-500.0,0.00010474,2]
[346851567,1735326633329,-929.15,0.00010474,2]
[346851568,1735326633338,-1611.38,0.00010474,2]
[346851569,1735326633348,-1448.8,0.00010474,2]
[346851570,1735326633359,-500.0,0.00010474,2]
[346851571,1735326633368,-1007.82,0.00010474,2]
[346851572,1735326633377,-3385.7,0.00010474,2]
[346851573,1735326633388,-8973.89,0.00010474,2]
[346851574,1735326633397,-500.0,0.00010474,2]
[346851575,1735326633407,-2772.4,0.00010474,2]
[346851576,1735326633416,-5512.68,0.00010474,2]
[346851577,1735326633426,-1689.82,0.00010474,2]
[346851578,1735326633435,-1699.24,0.00010474,2]
[346851579,1735326633445,-1291.75,0.00010474,2]
[346851580,1735326633454,-556.15,0.00010474,2]
[346851581,1735326633463,-1941.66,0.00010474,2]
[346851582,1735326633472,-500.0,0.00010474,2]
[346851583,1735326633482,-500.0,0.00010474,2]
[346851584,1735326633491,-1253.73,0.00010474,2]
[346851585,1735326633501,-1667.67,0.00010474,2]
[346851586,1735326633511,-637.39189163,0.00010474,2]
[346851587,1735326633521,-1072.64,0.00010475,2]
[346851588,1735326633531,-693.45,0.00010475,2]
[346851589,1735326633540,-1322.82,0.00010475,2]
[346851590,1735326633549,-500.0,0.00010475,2]
[346851591,1735326633559,-500.0,0.00010475,2]
[346851592,1735326633569,-500.0,0.00010475,2]
[346851593,1735326633578,-1404.56,0.00010475,2]
[346851594,1735326633587,-500.0,0.00010475,2]
[346851595,1735326633597,-500.0,0.00010475,2]
[346851596,1735326633608,-500.0,0.00010475,2]
[346851597,1735326633617,-500.0,0.00010475,2]
[346851598,1735326633627,-500.0,0.00010475,2]
[346851599,1735326633636,-500.0,0.00010475,2]
[346851600,1735326633647,-429.53942949,0.00010475,2]
[346851601,1735326633656,-500.0,0.00010475,2]
[346851602,1735326633665,-993.71,0.00010475,2]
[346851603,1735326633675,-500.0,0.00010475,2]
[346851604,1735326633685,-543.28,0.00010475,2]
[346851605,1735326633695,-573.74,0.00010475,2]
[346851606,1735326633704,-1086.83,0.00010475,2]
[346851607,1735326633713,-863.58,0.00010475,2]
[346851608,1735326633722,-500.0,0.00010475,2]
[346851609,1735326633731,-217.87190703,0.00010475,2]
[346851610,1735326633741,-500.0,0.00010475,2]
[346851611,1735326633751,-500.0,0.00010475,2]
[346851612,1735326633760,-1129.06,0.00010475,2]
[346851613,1735326633771,-501.59400194,0.00010475,2]
[346851614,1735326633780,-626.73,0.00010475,2]
[346851615,1735326633790,-500.0,0.00010475,2]
[346851616,1735326633799,-507.70367425,0.00010475,2]
[346851617,1735326633808,-500.0,0.00010475,2]
[346851618,1735326633818,-500.0,0.00010475,2]
[346851619,1735326633827,-500.0,0.00010475,2]
[346851620,1735326633837,-500.0,0.00010475,2]
[346851621,1735326633846,-500.0,0.00010475,2]
[346851622,1735326633856,-500.0,0.00010475,2]
[346851623,1735326633866,-571.56266673,0.00010475,2]
[346851624,1735326633875,-551.0,0.00010475,2]
[346851625,1735326633884,-500.0,0.00010475,2]
[346851626,1735326633894,-500.0,0.00010475,2]
[346851627,1735326633904,-500.0,0.00010475,2]
[346851628,1735326633913,-500.0,0.00010475,2]
[346851629,1735326633923,-500.0,0.00010475,2]
[346851630,1735326633932,-500.0,0.00010475,2]
[346851631,1735326633941,-500.0,0.00010475,2]
[346851632,1735326633951,-500.0,0.00010475,2]
[346851633,1735326633960,-500.0,0.00010475,2]
[346851634,1735326633969,-500.0,0.00010475,2]
[346851635,1735326633979,-500.0,0.00010475,2]
[346851636,1735326633989,-500.0,0.00010475,2]
[346851637,1735326633999,-674.35,0.00010475,2]
[346851638,1735326634009,-500.0,0.00010475,2]
[346851639,1735326634020,-500.0,0.00010475,2]
[346851640,1735326634030,-500.0,0.00010475,2]
[346851641,1735326634039,-500.0,0.00010475,2]
[346851642,1735326634049,-500.0,0.00010475,2]
[346851643,1735326634058,-533.01,0.00010475,2]
[346851644,1735326634068,-767.99,0.00010475,2]
[346851645,1735326634077,-787.43,0.00010475,2]
[346851646,1735326634087,-500.0,0.00010475,2]
[346851647,1735326634097,-500.0,0.00010475,2]
[346851648,1735326634106,-500.0,0.00010475,2]
[346851649,1735326634115,-500.0,0.00010475,2]
[346851650,1735326634124,-500.0,0.00010475,2]
[346851651,1735326634134,-740.57,0.00010475,2]
[346851652,1735326634143,-500.0,0.00010475,2]
[346851653,1735326634152,-541.74,0.00010475,2]
[346851654,1735326634162,-564.45,0.00010475,2]
[346851655,1735326634171,-500.0,0.00010475,2]
[346851656,1735326634180,-717.16,0.00010475,2]
[346851657,1735326634190,-500.0,0.00010475,2]
[346851658,1735326634199,-529.16558149,0.00010475,2]
[346851659,1735326634208,-500.0,0.00010475,2]
[346851660,1735326634218,-889.91,0.00010475,2]
[346851661,1735326634227,-500.0,0.00010475,2]
[346851662,1735326634236,-608.57,0.00010475,2]
[346851663,1735326634245,-500.0,0.00010475,2]
[346851664,1735326634254,-500.0,0.00010475,2]
[346851665,1735326634264,-500.0,0.00010475,2]
[346851666,1735326634273,-500.0,0.00010475,2]
[346851667,1735326634283,-662.29,0.00010475,2]
[346851668,1735326634292,-500.0,0.00010475,2]
[346851669,1735326634302,-500.0,0.00010475,2]
[346851670,1735326634311,-500.0,0.00010475,2]
[346851671,1735326634320,-500.0,0.00010475,2]
[346851672,1735326634329,-500.0,0.00010475,2]
[346851673,1735326634339,-500.0,0.00010475,2]
[346851674,1735326634348,-644.95,0.00010475,2]
[346851675,1735326634357,-500.0,0.00010475,2]
[346851676,1735326634366,-500.0,0.00010475,2]
[346851677,1735326634375,-500.0,0.00010475,2]
[346851678,1735326634386,-500.0,0.00010475,2]
[346851679,1735326634395,-500.0,0.00010475,2]
[346851680,1735326634404,-593.95,0.00010475,2]
[346851681,1735326634413,-549.62002964,0.00010475,2]
[346851682,1735326634423,-537.4,0.00010475,2]
[346851683,1735326634432,-629.0,0.00010475,2]
[346851684,1735326634441,-500.0,0.00010475,2]
[346851685,1735326634451,-500.0,0.00010475,2]
[346851686,1735326634460,-500.0,0.00010475,2]
[346851687,1735326634470,-662.79,0.00010475,2]
[346851688,1735326634479,-500.0,0.00010475,2]
[346851689,1735326634488,-500.0,0.00010475,2]
[346851690,1735326634497,-500.0,0.00010475,2]
[346851691,1735326634506,-500.0,0.00010475,2]
[346851692,1735326634516,-500.0,0.00010475,2]
[346851693,1735326634526,-500.0,0.00010475,2]
[346851694,1735326634535,-530.35,0.00010475,2]
[346851695,1735326634544,-500.0,0.00010475,2]
[346851696,1735326634553,-870.8,0.00010475,2]
[346851697,1735326634562,-500.0,0.00010475,2]
[346851698,1735326634571,-500.0,0.00010475,2]
[346851699,1735326634581,-500.0,0.00010475,2]
[346851700,1735326634590,-500.0,0.00010475,2]
[346851701,1735326634599,-844.04,0.00010475,2]
[346851702,1735326634611,-500.0,0.00010475,2]
[346851703,1735326634620,-500.0,0.00010475,2]
[346851704,1735326634631,-500.0,0.00010475,2]
[346851705,1735326634639,-500.0,0.00010475,2]
[346851706,1735326634650,-500.0,0.00010475,2]
[346851707,1735326634659,-500.0,0.00010475,2]
[346851708,1735326634669,-500.0,0.00010475,2]
[346851709,1735326634679,-500.0,0.00010475,2]
[346851710,1735326634689,-500.0,0.00010475,2]
[346851711,1735326634698,-500.0,0.00010475,2]
[346851712,1735326634708,-503.28,0.00010475,2]
[346851713,1735326634717,-851.89,0.00010475,2]
[346851714,1735326634726,-497.43540294,0.00010475,2]
[346851715,1735326634736,-500.0,0.00010475,2]
[346851716,1735326634747,-500.0,0.00010475,2]
[346851717,1735326634756,-500.0,0.00010475,2]
[346851718,1735326634766,-500.0,0.00010475,2]
[346851719,1735326634776,-500.0,0.00010475,2]
[346851720,1735326634786,-500.0,0.00010475,2]
[346851721,1735326634795,-624.55,0.00010475,2]
[346851722,1735326634804,-500.0,0.00010475,2]
[346851723,1735326634814,-500.0,0.00010475,2]
[346851724,1735326634823,-564.62,0.00010475,2]
[346851725,1735326634832,-500.0,0.00010475,2]
[346851726,1735326634841,-500.0,0.00010475,2]
[346851727,1735326634850,-589.61,0.00010475,2]
[346851728,1735326634859,-500.0,0.00010475,2]
[346851729,1735326634868,-500.0,0.00010475,2]
[346851730,1735326634878,-519.63,0.00010475,2]
[346851731,1735326634887,-500.0,0.00010475,2]
[346851732,1735326634896,-515.49141573,0.00010475,2]
[346851733,1735326634906,-866.37,0.00010475,2]
[346851734,1735326634916,-500.0,0.00010475,2]
[346851735,1735326634925,-500.0,0.00010475,2]
[346851736,1735326634934,-500.0,0.00010475,2]
[346851737,1735326634944,-790.53,0.00010475,2]
[346851738,1735326634953,-500.99619177,0.00010475,2]
[346851739,1735326634963,-544.84,0.00010475,2]
[346851740,1735326634972,-500.0,0.00010475,2]
[346851741,1735326634981,-500.0,0.00010475,2]
[346851742,1735326634991,-858.37,0.00010475,2]
[346851743,1735326635000,-500.89401958,0.00010475,2]
[346851744,1735326635009,-500.0,0.00010475,2]
[346851745,1735326635019,-500.0,0.00010475,2]
[346851746,1735326635028,-500.0,0.00010475,2]
[346851747,1735326635037,-500.0,0.00010475,2]
[346851748,1735326635047,-500.0,0.00010475,2]
[346851749,1735326635056,-500.0,0.00010475,2]
[346851750,1735326635065,-500.0,0.00010475,2]
[346851751,1735326635074,-500.0,0.00010475,2]
[346851752,1735326635084,-1771.15,0.00010475,2]
[346851753,1735326635093,-500.0,0.00010475,2]
[346851754,1735326635103,-500.0,0.00010475,2]
[346851755,1735326635112,-500.0,0.00010475,2]
[346851756,1735326635121,-500.0,0.00010475,2]
[346851757,1735326635131,-500.0,0.00010475,2]
[346851758,1735326635140,-500.0,0.00010475,2]
[346851759,1735326635149,-500.0,0.00010475,2]
[346851760,1735326635159,-500.0,0.00010475,2]
[346851761,1735326635169,-500.0,0.00010475,2]
[346851762,1735326635179,-500.0,0.00010475,2]
[346851763,1735326635188,-740.53,0.00010475,2]
[346851764,1735326635197,-500.0,0.00010475,2]
[346851765,1735326635207,-500.0,0.00010475,2]
[346851766,1735326635216,-500.0,0.00010475,2]
[346851767,1735326635226,-500.0,0.00010475,2]
[346851768,1735326635236,-972.04,0.00010475,2]
[346851769,1735326635245,-500.0,0.00010475,2]
[346851770,1735326635254,-500.0,0.00010475,2]
[346851771,1735326635263,-500.0,0.00010475,2]
[346851772,1735326635273,-1180.85,0.00010475,2]
[346851773,1735326635282,-500.0,0.00010475,2]
[346851774,1735326635293,-500.0,0.00010475,2]
[346851775,1735326635311,-500.0,0.00010475,2]
[346851776,1735326635321,-500.0,0.00010475,2]
[346851777,1735326635331,-512.37138878,0.00010475,2]
[346851778,1735326635340,-634.09,0.00010475,2]
[346851779,1735326635349,-500.0,0.00010475,2]
[346851780,1735326635358,-500.0,0.00010475,2]
[346851781,1735326635367,-500.0,0.00010475,2]
[346851782,1735326635376,-500.0,0.00010475,2]
[346851783,1735326635385,-952.91,0.00010475,2]
[346851784,1735326635394,-500.0,0.00010475,2]
[346851785,1735326635404,-500.0,0.00010475,2]
[346851786,1735326635413,-500.0,0.00010475,2]
[346851787,1735326635422,-500.0,0.00010475,2]
[346851788,1735326635432,-500.0,0.00010475,2]
[346851789,1735326635441,-1572.62,0.00010475,2]
[346851790,1735326635451,-500.0,0.00010475,2]
[346851791,1735326635460,-500.0,0.00010475,2]
[346851792,1735326635469,-500.55006492,0.00010475,2]
[346851793,1735326635479,-500.0,0.00010475,2]
[346851794,1735326635488,-500.0,0.00010475,2]
[346851795,1735326635497,-622.06,0.00010475,2]
[346851796,1735326635506,-500.33166274,0.00010475,2]
[346851797,1735326635515,-500.0,0.00010475,2]
[346851798,1735326635525,-500.0,0.00010475,2]
[346851799,1735326635534,-500.0,0.00010475,2]
[346851800,1735326635543,-814.28,0.00010475,2]
[346851801,1735326635553,-500.0,0.00010475,2]
[346851802,1735326635562,-500.0,0.00010475,2]
[346851803,1735326635571,-500.35911176,0.00010475,2]
[346851804,1735326635581,-500.0,0.00010475,2]
[346851805,1735326635590,-500.0,0.00010475,2]
[346851806,1735326635599,-500.0,0.00010475,2]
[346851807,1735326635610,-500.0,0.00010475,2]
[346851808,1735326635620,-745.56,0.00010475,2]
[346851809,1735326635629,-500.0,0.00010475,2]
[346851810,1735326635639,-500.0,0.00010475,2]
[346851811,1735326635649,-500.0,0.00010475,2]
[346851812,1735326635663,-500.0,0.00010475,2]
[346851813,1735326635673,-500.0,0.00010475,2]
[346851814,1735326635685,-500.0,0.00010475,2]
[346851815,1735326635698,-500.0,0.00010475,2]
[346851816,1735326635711,-500.0,0.00010475,2]
[346851817,1735326635721,-500.0,0.00010475,2]
[346851818,1735326635731,-500.0,0.00010475,2]
[346851819,1735326635740,-500.0,0.00010475,2]
[346851820,1735326635750,-944.53,0.00010475,2]
[346851821,1735326635759,-500.0,0.00010475,2]
[346851822,1735326635769,-500.0,0.00010475,2]
[346851823,1735326635778,-500.0,0.00010475,2]
[346851824,1735326635788,-1657.51,0.00010475,2]
[346851825,1735326635797,-500.0,0.00010475,2]
[346851826,1735326635807,-500.0,0.00010475,2]
[346851827,1735326635816,-500.0,0.00010475,2]
[346851828,1735326635827,-500.0,0.00010475,2]
[346851829,1735326635835,-500.0,0.00010475,2]
[346851830,1735326635845,-500.0,0.00010475,2]
[346851831,1735326635855,-500.0,0.00010475,2]
[346851832,1735326635864,-500.0,0.00010475,2]
[346851833,1735326635873,-500.0,0.00010475,2]
[346851834,1735326635882,-500.0,0.00010475,2]
[346851835,1735326635891,-1356.52,0.00010475,2]
[346851836,1735326635900,-500.0,0.00010475,2]
[346851837,1735326635909,-500.0,0.00010475,2]
[346851838,1735326635919,-500.0,0.00010475,2]
[346851839,1735326635928,-500.0,0.00010475,2]
[346851840,1735326635938,-500.62264868,0.00010475,2]
[346851841,1735326635947,-1194.33,0.00010475,2]
[346851842,1735326635956,-500.0,0.00010475,2]
[346851843,1735326635965,-500.0,0.00010475,2]
[346851844,1735326635974,-500.0,0.00010475,2]
[346851845,1735326635983,-587.5,0.00010475,2]
[346851846,1735326635992,-500.0,0.00010475,2]
[346851847,1735326636002,-500.0,0.00010475,2]
[346851848,1735326636011,-500.0,0.00010475,2]
[346851849,1735326636022,-500.0,0.00010475,2]
[346851850,1735326636031,-500.0,0.00010475,2]
[346851851,1735326636040,-500.0,0.00010475,2]
[346851852,1735326636049,-500.0,0.00010475,2]
[346851853,1735326636059,-1119.31,0.00010475,2]
[346851854,1735326636068,-500.0,0.00010475,2]
[346851855,1735326636077,-1056.53,0.00010475,2]
[346851856,1735326636086,-500.0,0.00010475,2]
[346851857,1735326636095,-500.0,0.00010475,2]
[346851858,1735326636105,-650.03,0.00010475,2]
[346851859,1735326636114,-500.0,0.00010475,2]
[346851860,1735326636123,-500.0,0.00010475,2]
[346851861,1735326636132,-776.87,0.00010475,2]
[346851862,1735326636142,-500.0,0.00010475,2]
[346851863,1735326636151,-500.0,0.00010475,2]
[346851864,1735326636161,-500.0,0.00010475,2]
[346851865,1735326636171,-500.0,0.00010475,2]
[346851866,1735326636180,-500.0,0.00010475,2]
[346851867,1735326636190,-323.85555549,0.00010475,2]
[346851868,1735326636199,-902.26,0.00010475,2]
[346851869,1735326636208,-1110.93,0.00010475,2]
[346851870,1735326636217,-1173.01,0.00010475,2]
[346851871,1735326636227,-500.0,0.00010475,2]
[346851872,1735326636236,-721.68,0.00010475,2]
[346851873,1735326636246,-500.0,0.00010475,2]
[346851874,1735326636255,-500.0,0.00010475,2]
[346851875,1735326636265,-500.0,0.00010475,2]
[346851876,1735326636274,-500.0,0.00010475,2]
[346851877,1735326636283,-1665.47,0.00010475,2]
[346851878,1735326636291,-500.0,0.00010475,2]
[346851879,1735326636300,-1335.07,0.00010475,2]
[346851880,1735326636308,-500.0,0.00010475,2]
[346851881,1735326636317,-500.0,0.00010475,2]
[346851882,1735326636325,-500.0,0.00010475,2]
[346851883,1735326636334,-500.0,0.00010475,2]
[346851884,1735326636343,-1123.81,0.00010475,2]
[346851885,1735326636352,-500.0,0.00010475,2]
[346851886,1735326636361,-786.48,0.00010475,2]
[346851887,1735326636370,-678.12,0.00010475,2]
[346851888,1735326636379,-500.0,0.00010475,2]
[346851889,1735326636389,-500.0,0.00010475,2]
[346851890,1735326636398,-769.93,0.00010475,2]
[346851891,1735326636408,-652.92,0.00010475,2]